bitfinex/quotes_SOLUSD_20250705
["timestamp","ask_amount","ask_price","bid_price","bid_amount"]
[1751680903401,3.82500496,148.4,148.34,26.2]
[1751680903402,3.82500496,148.37,148.34,0.2]
[1751680903632,8.8750986,148.36,148.34,6.94124435]
[1751680903818,3.82500496,148.37,148.34,6.94124435]
[1751680904126,5.05089126,148.36,148.34,6.94124435]
[1751680904330,5.05089126,148.35,148.34,6.94124435]
[1751680905213,5.05089126,148.35,148.34,10.76624931]
[1751680905531,94.70827441,148.4,148.34,72.2690733]
[1751680905735,5.04675072,148.39,148.37,3.82500496]
[1751680906042,1e-08,148.41,148.37,3.82500496]
[1751680906043,5.04675072,148.38,148.37,3.82500496]
[1751680906930,5.04675072,148.38,148.37,10.56491194]
[1751680908728,5.04675072,148.38,148.35,6.74081563]
[1751680908920,5.04675072,148.37,148.35,10.56582059]
[1751680909121,3.82500496,148.4,148.35,10.56582059]
[1751680909310,3.82500496,148.38,148.35,6.74081563]
[1751680909504,5.0468864,148.37,148.35,6.74081563]
[1751680909810,5.0468864,148.36,148.35,6.74081563]
[1751680923251,5.0468864,148.36,148.34,32.94108528]
[1751680923553,3.82500496,148.38,148.34,32.94108528]
[1751680923753,8.86924842,148.37,148.34,6.94108528]
[1751680923923,5.04424346,148.36,148.34,6.94108528]
[1751680924123,3.82500496,148.37,148.34,6.94108528]
[1751680924333,5.0444844,148.36,148.34,6.94108528]
[1751680924532,3.82500496,148.37,148.34,6.94108528]
[1751680924727,5.04425651,148.36,148.34,6.94108528]
[1751680924939,3.82500496,148.37,148.34,6.94108528]
[1751680925243,5.04425506,148.36,148.34,6.94108528]
[1751680925542,3.82500496,148.36,148.34,0.2]
[1751680925842,8.86937515,148.35,148.34,0.2]
[1751680929053,15.60799777,148.35,148.34,0.2]
[1751680930244,22.07699777,148.35,148.34,0.2]
[1751680930436,47.0293681,148.35,148.34,0.2]
[1751680932256,26.0,148.33,148.32,0.2]
[1751680932458,41.16234144,148.33,148.32,0.2]
[1751680933345,34.86718214,148.33,148.32,0.2]
[1751680934353,41.60890667,148.33,148.32,0.2]
[1751680947058,8.86718214,148.33,148.32,0.2]
[1751680947365,15.60890667,148.33,148.32,0.2]
[1751680960585,8.86718214,148.33,148.32,0.2]
[1751680962378,5.04217718,148.33,148.32,0.2]
[1751680962587,88.4,148.34,148.32,0.2]
[1751680962588,3.82500496,148.36,148.32,6.94217907]
[1751680962773,5.03357236,148.35,148.32,10.76718403]
[1751680963074,3.82500496,148.36,148.32,10.76718403]
[1751680963075,5.03357236,148.34,148.32,10.76718403]
[1751680963376,5.03357236,148.35,148.32,10.76718403]
[1751680963557,5.03357236,148.34,148.32,10.76718403]
[1751680963880,5.03357236,148.35,148.33,3.82500496]
[1751680964169,98.52016426,148.38,148.33,3.82500496]
[1751680964378,5.03598916,148.37,148.33,3.82500496]
[1751680964551,5.03598916,148.36,148.33,3.82500496]
[1751680964755,5.03598916,148.35,148.33,3.82500496]
[1751680964959,98.52016426,148.38,148.33,10.56638663]
[1751680965163,5.03587628,148.37,148.33,10.56638663]
[1751680965364,8.86088124,148.36,148.32,8.48001427]
[1751680965567,5.03587628,148.35,148.32,12.30501923]
[1751680965780,5.03587628,148.34,148.32,12.30501923]
[1751680965956,5.03587628,148.35,148.32,12.30501923]
[1751680966156,5.03587628,148.34,148.32,12.30501923]
[1751680966369,5.03587628,148.35,148.32,12.30501923]
[1751680966577,5.03587628,148.34,148.32,12.30501923]
[1751680966763,10.56502343,148.37,148.32,12.30501923]
[1751680966969,8.86224629,148.36,148.32,12.30501923]
[1751680967170,5.03724133,148.35,148.32,12.30501923]
[1751680967370,5.03724133,148.34,148.32,12.30501923]
[1751680967572,3.82500496,148.36,148.32,12.30501923]
[1751680967766,5.03868672,148.35,148.32,12.30501923]
[1751680967972,5.03868672,148.34,148.32,12.30501923]
[1751680968169,5.03868672,148.35,148.32,12.30501923]
[1751680968367,5.03868672,148.34,148.32,12.30501923]
[1751680968559,3.82500496,148.36,148.32,12.30501923]
[1751680968760,5.03995276,148.35,148.32,12.30501923]
[1751680969080,5.03995276,148.34,148.32,12.30501923]
[1751680969283,3.82500496,148.36,148.32,12.30501923]
[1751680969475,5.04118757,148.35,148.32,12.30501923]
[1751680969782,5.04118757,148.34,148.32,12.30501923]
[1751680969983,3.82500496,148.36,148.32,12.30501923]
[1751680970182,5.04118757,148.35,148.32,12.30501923]
[1751680970359,5.04118757,148.34,148.32,12.30501923]
[1751680970558,3.82500496,148.36,148.32,12.30501923]
[1751680970774,5.0425122,148.35,148.32,12.30501923]
[1751680970977,5.0425122,148.34,148.32,12.30501923]
[1751680971177,3.82500496,148.36,148.32,12.30501923]
[1751680971379,5.04260442,148.35,148.32,12.30501923]
[1751680971582,5.04260442,148.34,148.32,8.48001427]
[1751680971881,5.04260442,148.33,148.32,8.48001427]
[1751680973273,3.82500496,148.36,148.32,8.48001427]
[1751680973474,5.04275388,148.35,148.32,8.48001427]
[1751680973676,5.04275388,148.34,148.32,8.48001427]
[1751680973880,5.04275388,148.33,148.32,8.48001427]
[1751680974288,3.82500496,148.36,148.32,8.48001427]
[1751680974475,5.0424705,148.35,148.32,8.48001427]
[1751680974676,5.0424705,148.34,148.32,8.48001427]
[1751680974871,3.82500496,148.36,148.32,8.48001427]
[1751680975076,5.0424705,148.35,148.32,8.48001427]
[1751680975277,5.0424705,148.34,148.32,8.48001427]
[1751680975490,3.82500496,148.36,148.32,8.48001427]
[1751680975676,5.0420991,148.35,148.32,8.48001427]
[1751680976001,5.0420991,148.34,148.32,12.30501923]
[1751680976172,3.82500496,148.36,148.32,12.30501923]
[1751680976364,5.04127868,148.35,148.32,12.30501923]
[1751680976562,5.04127868,148.34,148.32,12.30501923]
[1751680976766,3.82500496,148.36,148.32,12.30501923]
[1751680976991,5.04127868,148.35,148.32,12.30501923]
[1751680977222,3.82500496,148.37,148.32,12.30501923]
[1751680977223,5.04127868,148.34,148.32,12.30501923]
[1751680977370,3.82500496,148.37,148.32,12.30501923]
[1751680977570,5.04080076,148.36,148.32,12.30501923]
[1751680977771,5.04080076,148.35,148.32,12.30501923]
[1751680978064,5.04080076,148.34,148.32,12.30501923]
[1751680978368,3.82500496,148.37,148.32,12.30501923]
[1751680978568,5.04040531,148.36,148.32,12.30501923]
[1751680978880,5.04040531,148.35,148.32,12.30501923]
[1751680979083,5.04040531,148.34,148.32,12.30501923]
[1751680979282,3.82500496,148.37,148.32,12.30501923]
[1751680979484,5.04009338,148.36,148.32,12.30501923]
[1751680979800,5.04009338,148.35,148.32,12.30501923]
[1751680979980,5.04009338,148.34,148.32,12.30501923]
[1751680980181,3.82500496,148.37,148.32,12.30501923]
[1751680980386,8.86499869,148.36,148.32,12.30501923]
[1751680980581,5.03999373,148.35,148.32,12.30501923]
[1751680980782,5.03999373,148.34,148.32,12.30501923]
[1751680980990,3.82500496,148.36,148.32,12.30501923]
[1751680981302,5.03999812,148.35,148.32,12.30501923]
[1751680981489,5.03999812,148.34,148.32,12.30501923]
[1751680981790,5.03999812,148.35,148.32,12.30501923]
[1751680981996,5.03999812,148.34,148.32,12.30501923]
[1751680982172,5.03999812,148.35,148.32,12.30501923]
[1751680982369,5.03999812,148.34,148.32,12.30501923]
[1751680982580,3.82500496,148.36,148.32,12.30501923]
[1751680982581,5.03999812,148.35,148.32,8.48001427]
[1751680982873,5.03999812,148.34,148.32,8.48001427]
[1751680983073,5.03999812,148.35,148.32,8.48001427]
[1751680983275,5.03999812,148.34,148.32,8.48001427]
[1751680983469,5.03999812,148.35,148.32,8.48001427]
[1751680983669,5.03999812,148.34,148.32,8.48001427]
[1751680983976,3.82500496,148.36,148.32,6.94201427]
[1751680984177,6.74004847,148.37,148.32,6.94201427]
[1751680984178,3.82500496,148.34,148.32,0.2]
[1751680984487,3.82500496,148.33,148.32,0.2]
[1751680985498,8.86425535,148.33,148.32,0.2]
[1751680985802,3.82500496,148.33,148.32,0.2]
[1751680985996,8.86425535,148.33,148.32,0.2]
[1751680986190,15.60597988,148.33,148.32,0.2]
[1751680989505,81.74314858,148.33,148.31,0.2]
[1751680989693,30.46686255,148.32,148.31,0.2]
[1751680989896,56.01651141,148.32,148.31,0.2]
[1751680990098,49.71392405,148.32,148.31,0.2]
[1751680991010,56.45610312,148.32,148.31,0.2]
[1751680993297,56.45610312,148.32,148.31,0.2]
[1751680997407,62.75083455,148.32,148.31,0.2]
[1751680998090,24.97616089,148.32,148.31,0.2]
[1751680998291,28.80116585,148.32,148.31,0.2]
[1751680998995,11.93925039,148.32,148.31,0.2]
[1751681000305,6.9,148.32,148.31,0.2]
[1751681000513,11.93925039,148.32,148.31,0.2]
[1751681000719,6.9,148.32,148.31,0.2]
[1751681001516,11.93925039,148.32,148.31,0.2]
[1751681001719,6.9,148.32,148.31,0.2]
[1751681001907,11.93925039,148.32,148.31,0.2]
[1751681002088,6.9,148.32,148.31,0.2]
[1751681002296,11.93925039,148.32,148.31,0.2]
[1751681002527,6.9,148.32,148.31,0.2]
[1751681002830,11.93925039,148.32,148.31,0.2]
[1751681003126,6.9,148.32,148.31,0.2]
[1751681003316,11.93925039,148.32,148.31,0.2]
[1751681003527,6.9,148.32,148.31,0.2]
[1751681003733,11.93925039,148.32,148.31,0.2]
[1751681004036,6.9,148.32,148.31,0.2]
[1751681004220,11.93925039,148.32,148.31,0.2]
[1751681004414,6.9,148.32,148.31,0.2]
[1751681004734,5.03925039,148.32,148.31,0.2]
[1751681004942,5.03925039,148.33,148.31,0.2]
[1751681005106,5.03925039,148.32,148.31,0.2]
[1751681005305,5.03925039,148.33,148.31,0.2]
[1751681005620,5.03925039,148.32,148.31,0.2]
[1751681005821,5.03925039,148.33,148.31,0.2]
[1751681006004,5.03925039,148.32,148.31,0.2]
[1751681006341,5.03925039,148.33,148.31,0.2]
[1751681006525,5.03925039,148.32,148.31,0.2]
[1751681006702,5.03925039,148.33,148.31,0.2]
[1751681006906,5.03925039,148.32,148.31,0.2]
[1751681007124,10.99759716,148.33,148.31,0.2]
[1751681007430,5.03925039,148.32,148.31,0.2]
[1751681013834,5.03925039,148.33,148.31,6.94257037]
[1751681014035,5.95834677,148.34,148.31,6.94257037]
[1751681014335,5.03615502,148.33,148.31,6.94257037]
[1751681014535,5.95834677,148.34,148.31,6.94257037]
[1751681014735,5.03643546,148.33,148.31,6.94257037]
[1751681014923,5.95834677,148.34,148.31,6.94257037]
[1751681015125,5.03643401,148.33,148.31,6.94257037]
[1751681015324,5.95834677,148.34,148.31,6.94257037]
[1751681015524,5.03672564,148.33,148.31,6.94257037]
[1751681015725,5.95834677,148.34,148.31,6.94257037]
[1751681015914,5.03672564,148.33,148.31,6.94257037]
[1751681016116,5.95834677,148.34,148.31,6.94257037]
[1751681016313,5.03672564,148.33,148.31,6.94257037]
[1751681016535,5.95834677,148.34,148.31,6.94257037]
[1751681016833,5.03702257,148.33,148.31,6.94257037]
[1751681017027,5.95834677,148.34,148.31,6.94257037]
[1751681017228,5.03702257,148.33,148.31,0.2]
[1751681017428,5.95834677,148.34,148.31,0.2]
[1751681017632,5.03732718,148.33,148.31,0.2]
[1751681017829,5.95834677,148.34,148.31,0.2]
[1751681018030,5.03732863,148.33,148.31,0.2]
[1751681018233,5.95834677,148.34,148.31,0.2]
[1751681018432,5.03764239,148.33,148.31,0.2]
[1751681018733,5.95834677,148.34,148.31,0.2]
[1751681018936,5.03764094,148.33,148.31,0.2]
[1751681019128,5.95834677,148.34,148.31,0.2]
[1751681019328,5.03764094,148.33,148.31,0.2]
[1751681019526,5.03807452,148.32,148.31,0.2]
[1751681019745,5.03807452,148.33,148.31,0.2]
[1751681020042,5.03807452,148.32,148.31,0.2]
[1751681020224,5.03807452,148.33,148.31,0.2]
[1751681020425,5.03807452,148.32,148.31,0.2]
[1751681020624,5.03807452,148.33,148.31,0.2]
[1751681020845,5.03807452,148.32,148.31,0.2]
[1751681021040,5.03807452,148.33,148.31,0.2]
[1751681021224,5.03807452,148.32,148.31,0.2]
[1751681026452,5.03807452,148.32,148.31,6.94263367]
[1751681030952,5.03807452,148.32,148.31,0.2]
[1751681031753,8.8512686,148.32,148.31,0.2]
[1751681038460,15.14600003,148.32,148.31,0.2]
[1751681038649,21.8881791,148.32,148.31,0.2]
[1751681040058,15.59344767,148.32,148.29,0.2]
[1751681040264,3.81319408,148.3,148.29,0.2]
[1751681040561,15.59435693,148.3,148.29,0.2]
[1751681040748,21.90530431,148.3,148.29,0.2]
[1751681041960,15.16221598,148.3,148.29,0.2]
[1751681043146,8.8512686,148.3,148.29,0.2]
[1751681048671,15.16221598,148.3,148.29,0.2]
[1751681050169,21.90530431,148.3,148.29,0.2]
[1751681052973,15.59435693,148.3,148.29,0.2]
[1751681053576,103.99435693,148.3,148.29,0.2]
[1751681056965,97.2512686,148.3,148.29,0.2]
[1751681058378,93.43807452,148.3,148.29,0.2]
[1751681058761,97.2512686,148.3,148.29,0.2]
[1751681059787,103.99435693,148.3,148.29,0.2]
[1751681062781,93.43807452,148.3,148.29,0.2]
[1751681065469,5.03807452,148.3,148.29,0.2]
[1751681065882,5.03807452,148.3,148.29,10.75673713]
[1751681066984,6.9,148.32,148.29,10.75673713]
[1751681067179,5.0451961,148.31,148.29,10.75673713]
[1751681067375,6.9,148.32,148.29,10.75673713]
[1751681067578,5.04550343,148.31,148.29,10.75673713]
[1751681067782,6.9,148.32,148.29,10.75673713]
[1751681068074,5.04550343,148.31,148.29,10.75673713]
[1751681068277,5.04572545,148.3,148.29,10.75673713]
[1751681073785,6.9,148.32,148.29,10.75673713]
[1751681074098,5.0471595,148.31,148.29,6.94354305]
[1751681074290,6.9,148.32,148.29,6.94354305]
[1751681074490,5.04722401,148.31,148.29,6.94354305]
[1751681074694,6.9,148.32,148.29,6.94354305]
[1751681074895,5.04722242,148.31,148.29,6.94354305]
[1751681075098,6.9,148.32,148.29,6.94354305]
[1751681075397,6.9,148.32,148.31,3.81319408]
[1751681075608,11.94743039,148.32,148.31,3.81319408]
[1751681076686,5.04743039,148.32,148.31,3.81319408]
[1751681077885,5.04743039,148.32,148.31,10.55582775]
[1751681079181,5.04743039,148.35,148.31,10.55582775]
[1751681079381,5.04743039,148.34,148.32,3.81319408]
[1751681079599,5.04743039,148.33,148.32,3.81319408]
[1751681079799,5.04743039,148.33,148.31,3.81319408]
[1751681080003,3.81319408,148.35,148.31,3.81319408]
[1751681080178,5.04325226,148.34,148.31,3.81319408]
[1751681080378,5.04325226,148.33,148.31,3.81319408]
[1751681080579,5.04314458,148.32,148.31,3.81319408]
[1751681080985,5.04314524,148.32,148.31,3.81319408]
[1751681081295,5.04314524,148.34,148.31,3.81319408]
[1751681081503,5.04314524,148.33,148.31,3.81319408]
[1751681081677,13.04443153,148.36,148.31,10.55571466]
[1751681081881,8.85536127,148.35,148.31,10.55571466]
[1751681082081,5.04216719,148.34,148.31,10.55571466]
[1751681082282,5.04216719,148.33,148.31,10.55571466]
[1751681082495,3.81319408,148.35,148.31,10.55571466]
[1751681082695,5.04123456,148.34,148.31,10.55571466]
[1751681082898,5.04123456,148.33,148.31,10.55571466]
[1751681083096,3.81319408,148.35,148.31,10.55571466]
[1751681083406,5.04075613,148.34,148.31,10.55571466]
[1751681083616,5.04075613,148.33,148.31,10.55571466]
[1751681083796,3.81319408,148.35,148.31,10.55571466]
[1751681084106,95.14049998,148.36,148.31,10.55571466]
[1751681084107,5.04050091,148.34,148.31,10.55571466]
[1751681084285,5.04050091,148.33,148.31,10.55571466]
[1751681084486,5.04050091,148.35,148.31,10.55571466]
[1751681084681,5.04050091,148.34,148.31,10.55571466]
[1751681084892,5.04050091,148.33,148.31,10.55571466]
[1751681085094,5.04050091,148.35,148.31,10.55571466]
[1751681085409,5.04050091,148.34,148.31,10.55571466]
[1751681085611,5.04050091,148.33,148.31,10.55571466]
[1751681085802,98.95369406,148.36,148.31,10.55571466]
[1751681086003,5.03927537,148.35,148.31,10.55571466]
[1751681086198,5.03927537,148.34,148.31,10.55571466]
[1751681086405,5.03927537,148.33,148.31,10.55571466]
[1751681086705,98.95369406,148.36,148.31,10.55571466]
[1751681087005,8.85224984,148.35,148.31,10.55571466]
[1751681087317,5.03905576,148.34,148.31,10.55571466]
[1751681087497,5.03905576,148.33,148.31,10.55571466]
[1751681087797,5.03905576,148.34,148.31,10.55571466]
[1751681087998,5.03905576,148.33,148.31,10.55571466]
[1751681088199,5.03905576,148.34,148.31,10.55571466]
[1751681088384,5.03905576,148.33,148.31,10.55571466]
[1751681088589,5.03905576,148.34,148.31,10.55571466]
[1751681088790,5.03905576,148.33,148.31,10.55571466]
[1751681088989,5.03905576,148.34,148.31,10.55571466]
[1751681089196,5.03905576,148.33,148.31,10.55571466]
[1751681089509,5.03845113,148.34,148.31,10.55571466]
[1751681089709,5.03845113,148.33,148.31,3.81319408]
[1751681089896,3.81319408,148.35,148.3,6.74289896]
[1751681089897,5.03845113,148.34,148.3,6.74289896]
[1751681090098,5.03845113,148.33,148.31,3.81319408]
[1751681090299,10.55415482,148.35,148.31,3.81319408]
[1751681090512,5.03850418,148.34,148.31,3.81319408]
[1751681090688,5.03850418,148.33,148.31,3.81319408]
[1751681090889,10.55415482,148.35,148.31,3.81319408]
[1751681091089,5.03850418,148.34,148.31,3.81319408]
[1751681091289,5.03850418,148.33,148.31,3.81319408]
[1751681091510,10.55415482,148.35,148.31,3.81319408]
[1751681091712,5.03849917,148.34,148.31,3.81319408]
[1751681091899,5.03849917,148.33,148.31,3.81319408]
[1751681092195,10.55415482,148.35,148.31,3.81319408]
[1751681092401,5.03855157,148.34,148.31,3.81319408]
[1751681092601,5.03855157,148.33,148.31,3.81319408]
[1751681092802,10.55415482,148.35,148.31,3.81319408]
[1751681093100,5.03855157,148.34,148.31,3.81319408]
[1751681093302,5.03855157,148.33,148.31,3.81319408]
[1751681093507,6.74096074,148.35,148.31,3.81319408]
[1751681093707,5.03864625,148.34,148.31,3.81319408]
[1751681093907,5.03864625,148.33,148.31,3.81319408]
[1751681094108,10.55415482,148.35,148.31,3.81319408]
[1751681094309,5.03922133,148.34,148.31,3.81319408]
[1751681094510,5.03922133,148.33,148.31,3.81319408]
[1751681094696,10.55415482,148.35,148.31,3.81319408]
[1751681094898,5.03916673,148.34,148.31,3.81319408]
[1751681095098,5.03916673,148.33,148.31,3.81319408]
[1751681095299,5.03961634,148.34,148.31,3.81319408]
[1751681095511,5.03961634,148.33,148.31,3.81319408]
[1751681095711,5.03961634,148.34,148.31,3.81319408]
[1751681095894,5.03961634,148.33,148.31,3.81319408]
[1751681096096,6.74096074,148.35,148.31,3.81319408]
[1751681096418,5.04016442,148.34,148.31,3.81319408]
[1751681096714,5.04016442,148.33,148.31,3.81319408]
[1751681096917,5.04016442,148.34,148.31,3.81319408]
[1751681097118,5.04016442,148.33,148.31,3.81319408]
[1751681097298,6.74096074,148.35,148.31,3.81319408]
[1751681097493,5.04082935,148.34,148.31,3.81319408]
[1751681097717,5.04082935,148.33,148.31,3.81319408]
[1751681097918,6.74096074,148.35,148.31,3.81319408]
[1751681098121,5.04093568,148.34,148.31,3.81319408]
[1751681098297,5.04093568,148.33,148.31,3.81319408]
[1751681098498,5.04093568,148.32,148.31,3.81319408]
[1751681098997,10.55415482,148.35,148.31,3.81319408]
[1751681098998,5.04093568,148.34,148.31,3.81319408]
[1751681099192,5.04093568,148.33,148.31,3.81319408]
[1751681099410,3.81319408,148.33,148.29,4.01319408]
[1751681099616,5.0421154,148.32,148.29,0.2]
[1751681099898,3.81319408,148.32,148.29,0.2]
[1751681100811,5.0431631,148.31,148.29,0.2]
[1751681101002,5.0431631,148.3,148.29,0.2]
[1751681101411,8.85635718,148.3,148.29,0.2]
[1751681101612,15.59944551,148.3,148.29,0.2]
[1751681102418,41.16909437,148.3,148.29,0.2]
[1751681102715,47.4686148,148.3,148.29,0.2]
[1751681102914,47.4686148,148.3,148.26,0.2]
[1751681102915,18.64964886,148.29,148.26,0.2]
[1751681103117,5.0431631,148.28,148.26,0.2]
[1751681103325,8.85635718,148.27,148.26,0.2]
[1751681104108,15.60080986,148.27,148.26,0.2]
[1751681105613,11.78761578,148.27,148.26,0.2]
[1751681105820,17.75211709,148.27,148.26,0.2]
[1751681109401,11.78761578,148.27,148.26,0.2]
[1751681109623,17.75211709,148.27,148.26,0.2]
[1751681113038,11.78761578,148.27,148.26,0.2]
[1751681113222,17.75211709,148.27,148.26,0.2]
[1751681114123,17.74036849,148.27,148.26,0.2]
[1751681115739,11.77586718,148.27,148.26,0.2]
[1751681115913,17.74036849,148.27,148.26,0.2]
[1751681117920,36.39001735,148.27,148.26,0.2]
[1751681118624,62.39001735,148.27,148.26,1e-08]
[1751681120717,67.69407794,148.27,148.26,1e-08]
[1751681123142,62.39001735,148.27,148.26,1e-08]
[1751681126540,56.42551604,148.27,148.26,1e-08]
[1751681126843,62.39001735,148.27,148.26,1e-08]
[1751681127844,60.24323113,148.27,148.26,1e-08]
[1751681128218,11.77586718,148.27,148.26,1e-08]
[1751681128417,6.74445268,148.27,148.26,1e-08]
[1751681128824,11.77586718,148.27,148.26,1e-08]
[1751681134660,17.73887776,148.27,148.26,1e-08]
[1751681135435,12.70746326,148.27,148.26,1e-08]
[1751681135757,11.77039292,148.27,148.26,1e-08]
[1751681139657,17.7334035,148.27,148.26,1e-08]
[1751681139962,11.77039292,148.27,148.26,1e-08]
[1751681140131,17.7334035,148.27,148.26,1e-08]
[1751681140644,11.77039292,148.27,148.26,1e-08]
[1751681140847,5.02594024,148.27,148.26,1e-08]
[1751681150064,38.70666367,148.29,148.26,1e-08]
[1751681150267,5.05177273,148.28,148.26,1e-08]
[1751681150569,5.05177273,148.27,148.26,1e-08]
[1751681151267,5.05177273,148.27,148.26,5.96301059]
[1751681151653,95.32,148.3,148.26,5.96301059]
[1751681151854,0.1,148.33,148.29,5.96301058]
[1751681152052,0.1,148.33,148.32,5.96301058]
[1751681152251,5.14944808,148.33,148.32,5.96301058]
[1751681154267,0.1,148.33,148.32,5.96301058]
[1751681154667,5.14944808,148.33,148.32,5.96301058]
[1751681154874,0.1,148.33,148.32,5.96301058]
[1751681159075,0.1,148.33,148.32,12.70518965]
[1751681161580,0.1,148.33,148.32,14.27628965]
[1751681161779,0.1,148.33,148.32,27.36430822]
[1751681162874,0.1,148.37,148.32,62.86940476]
[1751681163076,0.1,148.37,148.36,3.81020583]
[1751681163869,0.1,148.37,148.36,5.95175034]
[1751681164180,0.1,148.37,148.36,12.69211162]
[1751681173092,0.1,148.37,148.35,6.74081563]
[1751681173395,0.1,148.37,148.36,5.95175034]
[1751681174192,0.1,148.37,148.36,12.69211162]
[1751681175866,0.03258048,148.37,148.36,12.69211162]
[1751681176073,0.03258048,148.37,148.32,7.52285034]
[1751681176300,5.98433082,148.37,148.33,5.95175034]
[1751681177580,0.03258048,148.37,148.34,5.95175034]
[1751681177894,5.98433082,148.37,148.33,5.95175034]
[1751681181498,12.72428649,148.37,148.33,5.95175034]
[1751681181999,6.77253615,148.37,148.32,12.69370072]
[1751681182202,5.95175034,148.36,148.32,12.69370072]
[1751681183000,12.69241721,148.36,148.3,26.0]
[1751681183217,5.95175034,148.33,148.29,5.95175034]
[1751681184289,6.64,148.35,148.31,5.95175034]
[1751681184600,94.35175034,148.36,148.32,5.95175034]
[1751681184779,5.95175034,148.36,148.32,5.95175034]
[1751681185400,10.95694456,148.36,148.31,5.95175034]
[1751681186495,1.65878048,148.37,148.33,5.95175034]
[1751681186696,12.61877873,148.37,148.29,16.85885764]
[1751681186877,12.61877873,148.37,148.33,5.95175034]
[1751681188898,5.04082839,148.37,148.34,5.95175034]
[1751681189104,5.04082839,148.37,148.35,5.95175034]
[1751681191102,0.03258048,148.37,148.35,5.95175034]
[1751681191401,5.04785563,148.37,148.35,5.95175034]
[1751681193700,5.01527515,148.36,148.35,5.95175034]
[1751681194097,5.04785563,148.37,148.35,12.69256597]
[1751681194305,10.99960597,148.37,148.32,6.74217907]
[1751681194487,5.01527515,148.36,148.32,12.69392941]
[1751681194691,5.01527515,148.35,148.32,12.69392941]
[1751681194889,5.01527515,148.36,148.32,12.69392941]
[1751681195093,5.01527515,148.35,148.32,12.69392941]
[1751681195296,5.95175034,148.36,148.31,12.69420362]
[1751681195489,5.02984652,148.35,148.31,12.69420362]
[1751681195695,6.77270526,148.37,148.32,5.95175034]
[1751681195696,5.02984652,148.34,148.32,5.95175034]
[1751681195898,5.02984652,148.35,148.32,5.95175034]
[1751681196084,5.02984652,148.34,148.32,5.95175034]
[1751681196284,5.95175034,148.36,148.32,5.95175034]
[1751681196496,5.03366596,148.35,148.32,5.95175034]
[1751681196691,5.03366596,148.34,148.32,5.95175034]
[1751681196910,5.95175034,148.36,148.32,5.95175034]
[1751681197412,5.03366596,148.35,148.32,5.95175034]
[1751681197612,5.03366596,148.34,148.32,5.95175034]
[1751681197814,5.95175034,148.36,148.32,5.95175034]
[1751681197988,5.03434768,148.35,148.32,5.95175034]
[1751681198188,5.03434768,148.34,148.32,5.95175034]
[1751681198406,5.03434768,148.35,148.32,5.95175034]
[1751681198603,5.03434768,148.34,148.32,5.95175034]
[1751681198803,5.03434768,148.35,148.32,5.95175034]
[1751681199086,5.03434768,148.34,148.32,5.95175034]
[1751681199290,5.03434768,148.35,148.32,5.95175034]
[1751681199490,5.03434768,148.34,148.32,5.95175034]
[1751681199793,5.03434768,148.35,148.32,5.95175034]
[1751681200014,5.03434768,148.34,148.32,5.95175034]
[1751681200207,5.03434768,148.35,148.32,5.95175034]
[1751681200518,5.0357027,148.34,148.31,12.69420362]
[1751681200703,5.0357027,148.35,148.31,12.69420362]
[1751681201015,5.0357027,148.34,148.31,12.69420362]
[1751681201215,5.0357027,148.35,148.31,12.69420362]
[1751681201404,5.0357027,148.34,148.31,12.69420362]
[1751681201605,5.0357027,148.35,148.31,12.69420362]
[1751681201807,5.0357027,148.34,148.31,12.69420362]
[1751681202013,5.0357027,148.35,148.31,12.69420362]
[1751681202202,5.0357027,148.34,148.31,12.69420362]
[1751681202437,5.0357027,148.35,148.32,5.95175034]
[1751681202602,5.0357027,148.34,148.32,5.95175034]
[1751681202896,5.0357027,148.35,148.32,5.95175034]
[1751681203098,5.0357027,148.34,148.32,5.95175034]
[1751681203298,5.0357027,148.35,148.32,5.95175034]
[1751681203512,5.0357027,148.34,148.32,5.95175034]
[1751681203714,5.95175034,148.36,148.32,5.95175034]
[1751681203933,5.0361391,148.35,148.32,3.81238672]
[1751681204134,5.0361391,148.34,148.32,3.81238672]
[1751681204334,6.74038999,148.36,148.32,3.81238672]
[1751681204618,5.03588355,148.35,148.32,3.81238672]
[1751681204921,10.55277671,148.36,148.32,3.81238672]
[1751681205114,5.03588065,148.35,148.32,3.81238672]
[1751681205300,10.55277671,148.36,148.32,3.81238672]
[1751681205502,5.03605721,148.35,148.32,3.81238672]
[1751681205819,10.55277671,148.36,148.32,3.81238672]
[1751681206010,5.03605866,148.35,148.32,3.81238672]
[1751681206210,10.55277671,148.36,148.32,3.81238672]
[1751681206417,5.03603405,148.35,148.32,3.81238672]
[1751681206614,10.55277671,148.36,148.32,3.81238672]
[1751681206824,5.0360326,148.35,148.32,3.81238672]